[Event "*** Titled Tuesday 3|2 Blitz"]
[Site "Chess.com"]
[Date "2015.09.01"]
[Round "3"]
[White "zmaj23"]
[Black "MMSANCHEZ"]
[Result "0-1"]
[WhiteElo "2383"]
[BlackElo "2291"]
[TimeControl "180+2"]
[EndTime "11:35:15 PDT"]
[Termination "MMSANCHEZ won by resignation"]

1. e4 {[%clk 0:03:00.6]} 1... d5 {[%clk 0:02:58.7]} 2. exd5 {[%clk 0:03:01.1]}
2... Qxd5 {[%clk 0:03:00.6]} 3. Nc3 {[%clk 0:03:02]} 3... Qd6 {[%clk 0:03:01.9]}
4. Nf3 {[%clk 0:03:03]} 4... Nf6 {[%clk 0:03:02.6]} 5. d4 {[%clk 0:03:04.3]}
5... c6 {[%clk 0:03:03.9]} 6. g3 {[%clk 0:03:05.7]} 6... Bg4 {[%clk 0:03:04.8]}
7. Bg2 {[%clk 0:03:07.2]} 7... Nbd7 {[%clk 0:03:04.1]} 8. O-O {[%clk 0:03:07]}
8... e6 {[%clk 0:03:01.7]} 9. h3 {[%clk 0:03:06.9]} 9... Bxf3 {[%clk 0:03:01.8]}
10. Bxf3 {[%clk 0:03:07.8]} 10... Qc7 {[%clk 0:03:02.8]} 11. Re1 {[%clk
0:03:04.3]} 11... Bd6 {[%clk 0:02:55.4]} 12. Kg2 {[%clk 0:03:05.4]} 12... O-O
{[%clk 0:02:55.7]} 13. Bg5 {[%clk 0:03:05.1]} 13... h6 {[%clk 0:02:54.7]} 14.
Be3 {[%clk 0:03:06.1]} 14... e5 {[%clk 0:02:53.1]} 15. d5 {[%clk 0:03:01.5]}
15... Rfd8 {[%clk 0:02:38.3]} 16. dxc6 {[%clk 0:02:55.8]} 16... bxc6 {[%clk
0:02:38.3]} 17. Qe2 {[%clk 0:02:57.3]} 17... Nb6 {[%clk 0:02:35.7]} 18. Ne4
{[%clk 0:02:52.9]} 18... Be7 {[%clk 0:02:30.7]} 19. Rad1 {[%clk 0:02:50.2]}
19... Nbd5 {[%clk 0:02:31.4]} 20. Bc1 {[%clk 0:02:43.6]} 20... Rab8 {[%clk
0:02:28.3]} 21. c4 {[%clk 0:02:44.4]} 21... Nb6 {[%clk 0:02:25.4]} 22. Nxf6+
{[%clk 0:02:40.1]} 22... Bxf6 {[%clk 0:02:25.8]} 23. Qe4 {[%clk 0:02:42]} 23...
Rbc8 {[%clk 0:02:21.7]} 24. h4 {[%clk 0:02:37.5]} 24... Qe7 {[%clk 0:02:18.7]}
25. b3 {[%clk 0:02:34.1]} 25... c5 {[%clk 0:02:19.8]} 26. Bb2 {[%clk 0:02:09.4]}
26... Re8 {[%clk 0:01:51]} 27. g4 {[%clk 0:01:58.9]} 27... Bxh4 {[%clk
0:01:31.3]} 28. Bxe5 {[%clk 0:01:59.1]} 28... Qg5 {[%clk 0:01:16.8]} 29. Qf4
{[%clk 0:01:57.4]} 29... Qxf4 {[%clk 0:01:09.6]} 30. Bxf4 {[%clk 0:01:59.3]}
30... Bf6 {[%clk 0:01:10.4]} 31. Rxe8+ {[%clk 0:01:56.9]} 31... Rxe8 {[%clk
0:01:11.5]} 32. Be3 {[%clk 0:01:58.2]} 32... Rc8 {[%clk 0:01:10.2]} 33. Be4
{[%clk 0:01:56.7]} 33... Kf8 {[%clk 0:01:04.2]} 34. Bf5 {[%clk 0:01:57.7]} 34...
Rc7 {[%clk 0:00:58.4]} 35. Bf4 {[%clk 0:01:58.6]} 35... Rb7 {[%clk 0:00:55.5]}
36. Bd6+ {[%clk 0:01:59.3]} 36... Be7 {[%clk 0:00:55.5]} 37. Bg3 {[%clk
0:01:58.8]} 37... g6 {[%clk 0:00:51.4]} 38. Be4 {[%clk 0:01:59.3]} 38... Rd7
{[%clk 0:00:52.6]} 39. Rxd7 {[%clk 0:01:56.6]} 39... Nxd7 {[%clk 0:00:53.6]} 40.
Bc6 {[%clk 0:01:58.5]} 40... Nb6 {[%clk 0:00:49.4]} 41. a4 {[%clk 0:01:54.2]}
41... Nc8 {[%clk 0:00:43.4]} 42. Kf3 {[%clk 0:01:54.6]} 42... Nd6 {[%clk
0:00:38.7]} 43. Ke3 {[%clk 0:01:49.8]} 43... f6 {[%clk 0:00:39]} 44. Kd3 {[%clk
0:01:48.1]} 44... f5 {[%clk 0:00:36]} 45. f3 {[%clk 0:01:47.1]} 45... fxg4
{[%clk 0:00:36.6]} 46. fxg4 {[%clk 0:01:49]} 46... Kf7 {[%clk 0:00:35.1]} 47.
Kc3 {[%clk 0:01:44.4]} 47... h5 {[%clk 0:00:30.3]} 48. gxh5 {[%clk 0:01:41.4]}
48... gxh5 {[%clk 0:00:31.2]} 49. b4 {[%clk 0:01:36.3]} 49... cxb4+ {[%clk
0:00:31.3]} 50. Kb3 {[%clk 0:01:32.1]} 50... a5 {[%clk 0:00:29.8]} 51. Bf3
{[%clk 0:01:31.4]} 51... Kg6 {[%clk 0:00:27.3]} 52. Bf2 {[%clk 0:01:29.3]} 52...
Nf5 {[%clk 0:00:28.1]} 53. Bb6 {[%clk 0:01:29.2]} 53... h4 {[%clk 0:00:28.3]}
54. Bxa5 {[%clk 0:01:30]} 54... Nd4+ {[%clk 0:00:29.4]} 55. Kb2 {[%clk
0:01:29.3]} 55... Nxf3 {[%clk 0:00:31]} 56. Bc7 {[%clk 0:01:28.5]} 56... Nd4
{[%clk 0:00:30]} 57. a5 {[%clk 0:01:28.6]} 57... Nc6 {[%clk 0:00:30]} 58. a6
{[%clk 0:01:05.8]} 58... h3 {[%clk 0:00:30.2]} 59. Kb3 {[%clk 0:01:04.9]} 59...
Kf7 {[%clk 0:00:31.3]} 60. Ka4 {[%clk 0:01:01.7]} 60... Ke6 {[%clk 0:00:31.5]}
61. Bh2 {[%clk 0:01:02.2]} 61... Kd7 {[%clk 0:00:31.8]} 62. Kb3 {[%clk
0:00:46.6]} 62... Bd6 {[%clk 0:00:31.3]} 63. Bg1 {[%clk 0:00:47.4]} 63... Kc7
{[%clk 0:00:23.9]} 64. a7 {[%clk 0:00:45.8]} 64... Nxa7 {[%clk 0:00:23.5]} 65.
Ka4 {[%clk 0:00:40.6]} 65... Nc6 {[%clk 0:00:23.1]} 66. Kb3 {[%clk 0:00:38.2]}
66... h2 {[%clk 0:00:23.4]} 67. Bxh2 {[%clk 0:00:39]} 67... Bxh2 {[%clk
0:00:24.3]} 68. c5 {[%clk 0:00:40.7]} 68... Bg1 {[%clk 0:00:25.5]} 69. Kc4
{[%clk 0:00:38.4]} 69... Bxc5 {[%clk 0:00:25.6]} 0-1

[Event "*** Titled Tuesday 3|2 Blitz"]
[Site "Chess.com"]
[Date "2015.09.01"]
[Round "3"]
[White "stepanosinovsky"]
[Black "Tesla17"]
[Result "1-0"]
[WhiteElo "2274"]
[BlackElo "2122"]
[TimeControl "180+2"]
[EndTime "11:35:19 PDT"]
[Termination "stepanosinovsky won by resignation"]

1. Nf3 {[%clk 0:03:01.9]} 1... c5 {[%clk 0:03:01.4]} 2. g3 {[%clk 0:03:02.5]}
2... Nc6 {[%clk 0:03:03]} 3. Bg2 {[%clk 0:03:04.4]} 3... g6 {[%clk 0:03:04.6]}
4. O-O {[%clk 0:03:06.3]} 4... Bg7 {[%clk 0:03:06.3]} 5. d3 {[%clk 0:03:08]}
5... d6 {[%clk 0:03:07.7]} 6. e4 {[%clk 0:03:07.9]} 6... e6 {[%clk 0:03:09.1]}
7. c3 {[%clk 0:03:08.3]} 7... Nge7 {[%clk 0:03:10.5]} 8. d4 {[%clk 0:03:07.8]}
8... O-O {[%clk 0:03:12.1]} 9. Re1 {[%clk 0:03:03.9]} 9... b6 {[%clk 0:03:12.5]}
10. Na3 {[%clk 0:02:59.1]} 10... Ba6 {[%clk 0:03:10.1]} 11. Nc2 {[%clk
0:02:32.2]} 11... cxd4 {[%clk 0:03:02.1]} 12. cxd4 {[%clk 0:02:32.5]} 12... d5
{[%clk 0:03:03.7]} 13. e5 {[%clk 0:02:31.4]} 13... Qd7 {[%clk 0:02:59.3]} 14. h4
{[%clk 0:02:30.7]} 14... Rfc8 {[%clk 0:02:57]} 15. h5 {[%clk 0:02:31.3]} 15...
Na5 {[%clk 0:02:56.5]} 16. Bg5 {[%clk 0:02:25.7]} 16... Rc7 {[%clk 0:02:50.9]}
17. b3 {[%clk 0:02:20.5]} 17... Rac8 {[%clk 0:02:51.3]} 18. Ne3 {[%clk
0:02:21.6]} 18... Nac6 {[%clk 0:02:41.9]} 19. hxg6 {[%clk 0:02:17.7]} 19... hxg6
{[%clk 0:02:42.9]} 20. Ng4 {[%clk 0:02:17.7]} 20... Kf8 {[%clk 0:02:34.6]} 21.
Qd2 {[%clk 0:02:15.9]} 21... Ng8 {[%clk 0:02:33.7]} 22. Qf4 {[%clk 0:02:05.5]}
22... Ke8 {[%clk 0:02:32.4]} 23. Nh4 {[%clk 0:01:14.4]} 23... Nb4 {[%clk
0:02:26.7]} 24. Red1 {[%clk 0:01:09.2]} 24... Rc2 {[%clk 0:02:20.6]} 25. Ne3
{[%clk 0:01:08.6]} 25... Nd3 {[%clk 0:02:15.9]} 26. Rxd3 {[%clk 0:00:36.8]}
26... Bxd3 {[%clk 0:02:16.7]} 27. Nxc2 {[%clk 0:00:37.4]} 27... Rxc2 {[%clk
0:02:18.6]} 28. Nf3 {[%clk 0:00:36.4]} 28... Rc3 {[%clk 0:01:58.9]} 29. Ne1
{[%clk 0:00:26]} 29... Ba6 {[%clk 0:01:56.1]} 30. Rc1 {[%clk 0:00:25.9]} 30...
Qc6 {[%clk 0:01:56.1]} 31. Rxc3 {[%clk 0:00:25.4]} 31... Qxc3 {[%clk 0:01:57]}
32. Qd2 {[%clk 0:00:25.4]} 32... Qxd2 {[%clk 0:01:48.8]} 33. Bxd2 {[%clk
0:00:27.3]} 33... Ne7 {[%clk 0:01:50.7]} 34. g4 {[%clk 0:00:26.1]} 34... Be2
{[%clk 0:01:45.9]} 35. f3 {[%clk 0:00:25.8]} 35... Nc6 {[%clk 0:01:44.6]} 36.
Bc3 {[%clk 0:00:26.3]} 36... f6 {[%clk 0:01:40.1]} 37. Kf2 {[%clk 0:00:24.7]}
37... Ba6 {[%clk 0:01:39.3]} 38. exf6 {[%clk 0:00:20.7]} 38... Bxf6 {[%clk
0:01:40.4]} 39. Ke3 {[%clk 0:00:22]} 39... g5 {[%clk 0:01:30.1]} 40. Nd3 {[%clk
0:00:22.4]} 40... Kd7 {[%clk 0:01:29.4]} 41. Bf1 {[%clk 0:00:22.5]} 41... Kd6
{[%clk 0:01:25.4]} 42. Be2 {[%clk 0:00:22.7]} 42... Bxd3 {[%clk 0:01:17.3]} 43.
Kxd3 {[%clk 0:00:20.1]} 43... e5 {[%clk 0:01:17.7]} 44. dxe5+ {[%clk 0:00:19.8]}
44... Bxe5 {[%clk 0:01:19.6]} 45. Bd2 {[%clk 0:00:20.3]} 45... Bf6 {[%clk
0:01:17.8]} 46. f4 {[%clk 0:00:21.3]} 46... gxf4 {[%clk 0:01:15.7]} 47. Bxf4+
{[%clk 0:00:22.2]} 47... Kc5 {[%clk 0:01:15.8]} 48. g5 {[%clk 0:00:22.3]} 48...
Bg7 {[%clk 0:01:16.7]} 49. a3 {[%clk 0:00:22.6]} 49... a5 {[%clk 0:01:17.3]} 50.
Be3+ {[%clk 0:00:17.2]} 50... d4 {[%clk 0:01:17.9]} 51. Bf4 {[%clk 0:00:17.2]}
51... b5 {[%clk 0:01:13.5]} 52. Ke4 {[%clk 0:00:17.3]} 52... a4 {[%clk
0:01:04.8]} 53. b4+ {[%clk 0:00:18]} 53... Nxb4 {[%clk 0:01:06.4]} 54. axb4+
{[%clk 0:00:18.9]} 54... Kxb4 {[%clk 0:01:08.3]} 55. Bd6+ {[%clk 0:00:19.9]}
55... Kb3 {[%clk 0:01:09.7]} 56. Bxb5 {[%clk 0:00:19.6]} 56... a3 {[%clk
0:01:11.2]} 57. Be8 {[%clk 0:00:20.3]} 57... Kb2 {[%clk 0:01:10]} 58. Bf7 {[%clk
0:00:21]} 58... a2 {[%clk 0:01:11.6]} 59. Bxa2 {[%clk 0:00:21.8]} 59... Kxa2
{[%clk 0:01:13.5]} 60. Be7 {[%clk 0:00:22.8]} 60... Kb3 {[%clk 0:01:12.9]} 61.
Bf6 {[%clk 0:00:24.2]} 61... Bf8 {[%clk 0:01:12.9]} 62. Kxd4 {[%clk 0:00:22.9]}
62... Kb4 {[%clk 0:01:10]} 63. Kd5 {[%clk 0:00:23.5]} 63... Kb5 {[%clk
0:01:10.6]} 64. g6 {[%clk 0:00:24]} 64... Bh6 {[%clk 0:01:10.1]} 65. Ke6 {[%clk
0:00:24.8]} 65... Kc6 {[%clk 0:01:11.5]} 66. Kf7 {[%clk 0:00:23.9]} 66... Kd7
{[%clk 0:01:11.6]} 67. Bg7 {[%clk 0:00:25]} 67... Bd2 {[%clk 0:01:12.1]} 68. Bf8
{[%clk 0:00:24.7]} 68... Bc3 {[%clk 0:01:12.5]} 69. Bc5 {[%clk 0:00:24.3]} 69...
Bb2 {[%clk 0:01:13.2]} 70. Be3 {[%clk 0:00:25]} 70... Be5 {[%clk 0:00:58.9]} 71.
Bg5 {[%clk 0:00:25.8]} 1-0

[Event "*** Titled Tuesday 3|2 Blitz"]
[Site "Chess.com"]
[Date "2015.09.01"]
[Round "3"]
[White "Storne89"]
[Black "AleksandrNevski"]
[Result "1-0"]
[WhiteElo "2461"]
[BlackElo "2303"]
[TimeControl "180+2"]
[EndTime "11:35:25 PDT"]
[Termination "Storne89 won by resignation"]

1. e4 {[%clk 0:03:00.8]} 1... e5 {[%clk 0:02:59.1]} 2. Nf3 {[%clk 0:03:01.4]}
2... Nc6 {[%clk 0:03:00.5]} 3. Bb5 {[%clk 0:03:00.8]} 3... a6 {[%clk 0:03:01.7]}
4. Ba4 {[%clk 0:03:01.6]} 4... Nf6 {[%clk 0:03:03.2]} 5. d3 {[%clk 0:03:02.3]}
5... d6 {[%clk 0:03:02.8]} 6. c3 {[%clk 0:03:00.5]} 6... g6 {[%clk 0:03:03.7]}
7. O-O {[%clk 0:03:01.2]} 7... Bg7 {[%clk 0:03:05]} 8. Nbd2 {[%clk 0:03:02.6]}
8... O-O {[%clk 0:03:06]} 9. Re1 {[%clk 0:03:03.8]} 9... b5 {[%clk 0:02:56.1]}
10. Bc2 {[%clk 0:03:03.1]} 10... Bb7 {[%clk 0:02:57.5]} 11. Nf1 {[%clk
0:03:01.6]} 11... Re8 {[%clk 0:02:58.7]} 12. h3 {[%clk 0:03:01.2]} 12... Nb8
{[%clk 0:02:59.5]} 13. a4 {[%clk 0:03:00.8]} 13... Nbd7 {[%clk 0:02:59.9]} 14.
b4 {[%clk 0:03:00.9]} 14... c5 {[%clk 0:02:48.1]} 15. Ng3 {[%clk 0:02:55.5]}
15... Qc7 {[%clk 0:02:48.1]} 16. Bd2 {[%clk 0:02:52.3]} 16... Nb6 {[%clk
0:02:41.3]} 17. a5 {[%clk 0:02:51.2]} 17... Nbd7 {[%clk 0:02:41]} 18. Bb3 {[%clk
0:02:52.4]} 18... d5 {[%clk 0:02:35.4]} 19. exd5 {[%clk 0:02:37.9]} 19... Bxd5
{[%clk 0:02:29.3]} 20. Bxd5 {[%clk 0:02:36.4]} 20... Nxd5 {[%clk 0:02:29.3]} 21.
Rc1 {[%clk 0:02:38]} 21... c4 {[%clk 0:02:14]} 22. dxc4 {[%clk 0:02:35.6]} 22...
Qxc4 {[%clk 0:02:12]} 23. Ne4 {[%clk 0:02:36.8]} 23... Qc6 {[%clk 0:02:07.3]}
24. Be3 {[%clk 0:02:27.3]} 24... Rad8 {[%clk 0:01:41.5]} 25. Qb3 {[%clk
0:02:19.6]} 25... Nxe3 {[%clk 0:01:14.5]} 26. Rxe3 {[%clk 0:02:20.2]} 26... h6
{[%clk 0:01:16.2]} 27. Rce1 {[%clk 0:02:14.6]} 27... Rc8 {[%clk 0:00:41.2]} 28.
Rd1 {[%clk 0:02:08.2]} 28... Re6 {[%clk 0:00:41.4]} 29. Red3 {[%clk 0:02:01.7]}
29... Qxe4 {[%clk 0:00:37.7]} 30. Rxd7 {[%clk 0:02:02.5]} 30... Qc4 {[%clk
0:00:21.6]} 31. Qb1 {[%clk 0:01:52.2]} 31... e4 {[%clk 0:00:22.1]} 32. Nd4
{[%clk 0:01:48.9]} 32... Ree8 {[%clk 0:00:21]} 33. Nc2 {[%clk 0:01:37.5]} 33...
Qxc3 {[%clk 0:00:21]} 34. Ne3 {[%clk 0:01:38.8]} 34... Qc6 {[%clk 0:00:19.7]}
35. R7d6 {[%clk 0:01:26.9]} 35... Qb7 {[%clk 0:00:19.6]} 36. Qb3 {[%clk
0:01:27.5]} 36... Rc7 {[%clk 0:00:20.1]} 37. Rxg6 {[%clk 0:01:28.2]} 37... Rd7
{[%clk 0:00:16.6]} 38. Rgd6 {[%clk 0:01:15.2]} 38... Rxd6 {[%clk 0:00:16.9]} 39.
Rxd6 {[%clk 0:01:17.1]} 39... Kh7 {[%clk 0:00:16.2]} 40. Nf5 {[%clk 0:01:13.1]}
40... Be5 {[%clk 0:00:16]} 41. Rxh6+ {[%clk 0:01:13.4]} 41... Kg8 {[%clk
0:00:16.9]} 42. Qe3 {[%clk 0:01:11.6]} 42... Kf8 {[%clk 0:00:11]} 43. Qc5+
{[%clk 0:01:07.3]} 43... Kg8 {[%clk 0:00:11.7]} 44. Rc6 {[%clk 0:00:44.7]} 44...
Qd7 {[%clk 0:00:12.1]} 45. Ne3 {[%clk 0:00:33]} 45... Bd4 {[%clk 0:00:12.4]} 46.
Qg5+ {[%clk 0:00:32.1]} 46... Kf8 {[%clk 0:00:14]} 47. Rh6 {[%clk 0:00:26.7]}
47... Rc8 {[%clk 0:00:14.1]} 48. g3 {[%clk 0:00:23.8]} 48... Qd8 {[%clk
0:00:11]} 49. Qf4 {[%clk 0:00:19.5]} 49... Bxe3 {[%clk 0:00:12]} 50. Rh8+ {[%clk
0:00:12.2]} 50... Kg7 {[%clk 0:00:09.8]} 51. Rxd8 {[%clk 0:00:13.1]} 51... Rc1+
{[%clk 0:00:08.5]} 52. Kg2 {[%clk 0:00:14.6]} 52... Bxf4 {[%clk 0:00:10.1]} 53.
gxf4 {[%clk 0:00:16.5]} 53... Rb1 {[%clk 0:00:10]} 54. Rd6 {[%clk 0:00:17.6]}
54... Rxb4 {[%clk 0:00:10.7]} 55. Rxa6 {[%clk 0:00:19.2]} 55... Ra4 {[%clk
0:00:12.2]} 56. Ra7 {[%clk 0:00:19.9]} 56... b4 {[%clk 0:00:13.3]} 57. a6 {[%clk
0:00:20.8]} 57... b3 {[%clk 0:00:14.5]} 58. Rb7 {[%clk 0:00:21.6]} 58... Rxa6
{[%clk 0:00:15.4]} 59. Rxb3 {[%clk 0:00:23.1]} 59... Rg6+ {[%clk 0:00:15.9]} 60.
Rg3 {[%clk 0:00:24]} 60... Kf6 {[%clk 0:00:16.4]} 61. Rxg6+ {[%clk 0:00:18.7]}
61... fxg6 {[%clk 0:00:15.3]} 62. Kg3 {[%clk 0:00:20]} 62... g5 {[%clk 0:00:15]}
63. Kg4 {[%clk 0:00:16.7]} 1-0

[Event "*** Titled Tuesday 3|2 Blitz"]
[Site "Chess.com"]
[Date "2015.09.01"]
[Round "3"]
[White "Haridaskesavan"]
[Black "AnastasiaProtopopova"]
[Result "1-0"]
[WhiteElo "2003"]
[BlackElo "1776"]
[TimeControl "180+2"]
[EndTime "11:35:50 PDT"]
[Termination "Haridaskesavan won by resignation"]

1. e4 {[%clk 0:03:01.9]} 1... e5 {[%clk 0:02:59.6]} 2. Nf3 {[%clk 0:03:02.3]}
2... Nc6 {[%clk 0:03:00.6]} 3. Bc4 {[%clk 0:03:03.2]} 3... Nf6 {[%clk
0:03:00.9]} 4. d3 {[%clk 0:03:03.9]} 4... Bc5 {[%clk 0:03:01.6]} 5. O-O {[%clk
0:03:04.2]} 5... O-O {[%clk 0:02:59.9]} 6. Nbd2 {[%clk 0:03:05.2]} 6... d5
{[%clk 0:02:58]} 7. exd5 {[%clk 0:03:05.7]} 7... Nxd5 {[%clk 0:02:59.1]} 8. Re1
{[%clk 0:03:06.7]} 8... Bg4 {[%clk 0:02:58.1]} 9. h3 {[%clk 0:03:06.9]} 9... Bh5
{[%clk 0:02:58.4]} 10. Ne4 {[%clk 0:03:01.9]} 10... Be7 {[%clk 0:02:47.4]} 11.
Ng3 {[%clk 0:02:57.7]} 11... Bxf3 {[%clk 0:02:43.9]} 12. Qxf3 {[%clk 0:02:57.4]}
12... Nb6 {[%clk 0:02:45.2]} 13. Bb3 {[%clk 0:02:52]} 13... Bf6 {[%clk
0:02:18.6]} 14. Nf5 {[%clk 0:02:47.2]} 14... Rb8 {[%clk 0:02:06.9]} 15. Be3
{[%clk 0:02:44.1]} 15... Na5 {[%clk 0:02:04.9]} 16. Rad1 {[%clk 0:02:37]} 16...
Nxb3 {[%clk 0:02:05.5]} 17. axb3 {[%clk 0:02:37.5]} 17... Re8 {[%clk 0:01:59.7]}
18. c3 {[%clk 0:02:18.6]} 18... Qd7 {[%clk 0:01:42.4]} 19. Qg4 {[%clk
0:02:08.4]} 19... Kh8 {[%clk 0:01:23.6]} 20. Bxb6 {[%clk 0:01:49.5]} 20... axb6
{[%clk 0:01:22.9]} 21. Ne3 {[%clk 0:01:45.2]} 21... Qb5 {[%clk 0:01:06]} 22. b4
{[%clk 0:01:36]} 22... Rbd8 {[%clk 0:01:05.4]} 23. Qe4 {[%clk 0:01:32.7]} 23...
c6 {[%clk 0:01:01.3]} 24. Ng4 {[%clk 0:01:27.5]} 24... Rd6 {[%clk 0:00:26.7]}
25. d4 {[%clk 0:01:20.7]} 25... Rde6 {[%clk 0:00:15.8]} 26. dxe5 {[%clk
0:01:17.1]} 26... Bg5 {[%clk 0:00:11.2]} 27. f4 {[%clk 0:01:14.5]} 27... Bd8
{[%clk 0:00:10.9]} 28. Qd3 {[%clk 0:01:04.4]} 28... Bh4 {[%clk 0:00:09.4]} 29.
Qxb5 {[%clk 0:01:01.4]} 29... cxb5 {[%clk 0:00:09.1]} 30. Re2 {[%clk 0:00:56.6]}
30... h5 {[%clk 0:00:10.6]} 31. Ne3 {[%clk 0:00:54.6]} 31... f6 {[%clk
0:00:11.7]} 32. Nf5 {[%clk 0:00:51.9]} 32... g5 {[%clk 0:00:08.2]} 33. g3 {[%clk
0:00:34.4]} 33... fxe5 {[%clk 0:00:05.3]} 34. gxh4 {[%clk 0:00:33.9]} 34... gxf4
{[%clk 0:00:05.9]} 35. Rd7 {[%clk 0:00:27.4]} 35... e4 {[%clk 0:00:05.6]} 36.
Nd4 {[%clk 0:00:24.7]} 36... Rg6+ {[%clk 0:00:05.8]} 37. Kf1 {[%clk 0:00:24.1]}
37... e3 {[%clk 0:00:03.5]} 38. Nf3 {[%clk 0:00:21.2]} 38... Rg3 {[%clk
0:00:04.3]} 39. Ng5 {[%clk 0:00:20.4]} 39... f3 {[%clk 0:00:04.7]} 40. Nxf3
{[%clk 0:00:17.1]} 40... Rxf3+ {[%clk 0:00:05.5]} 41. Kg2 {[%clk 0:00:17.2]}
41... Rf5 {[%clk 0:00:05.1]} 42. Rd3 {[%clk 0:00:13.4]} 42... Rg8+ {[%clk
0:00:05.7]} 43. Kh2 {[%clk 0:00:12.7]} 43... Rf2+ {[%clk 0:00:05.9]} 44. Rxf2
{[%clk 0:00:13.2]} 44... exf2 {[%clk 0:00:07.4]} 45. Rf3 {[%clk 0:00:14.4]}
45... Re8 {[%clk 0:00:07.9]} 46. Rxf2 {[%clk 0:00:15]} 46... Re4 {[%clk
0:00:09.3]} 47. Kg3 {[%clk 0:00:15.7]} 47... Kg7 {[%clk 0:00:10.4]} 48. Rf5
{[%clk 0:00:15.8]} 48... Re3+ {[%clk 0:00:10.9]} 49. Kg2 {[%clk 0:00:14]} 49...
Re2+ {[%clk 0:00:11.1]} 50. Kf3 {[%clk 0:00:15.2]} 50... Rxb2 {[%clk 0:00:11.6]}
51. Rxb5 {[%clk 0:00:15.1]} 51... Rb3 {[%clk 0:00:12.3]} 52. Rxb6 {[%clk
0:00:14]} 52... Rxc3+ {[%clk 0:00:13.9]} 53. Kf4 {[%clk 0:00:14.9]} 53... Rxh3
{[%clk 0:00:13.5]} 54. Rxb7+ {[%clk 0:00:15.6]} 54... Kg6 {[%clk 0:00:15.2]} 55.
Rb6+ {[%clk 0:00:16.4]} 55... Kg7 {[%clk 0:00:16.3]} 56. Kg5 {[%clk 0:00:17.6]}
56... Rg3+ {[%clk 0:00:15.7]} 57. Kxh5 {[%clk 0:00:18.4]} 57... Rc3 {[%clk
0:00:17.3]} 58. Rb7+ {[%clk 0:00:17]} 58... Kg8 {[%clk 0:00:17.7]} 59. b5 {[%clk
0:00:17.4]} 59... Rc5+ {[%clk 0:00:18.2]} 60. Kg4 {[%clk 0:00:17.6]} 60... Rc4+
{[%clk 0:00:19]} 61. Kg5 {[%clk 0:00:18.9]} 61... Rc5+ {[%clk 0:00:20.2]} 62.
Kf6 {[%clk 0:00:19.3]} 62... Rh5 {[%clk 0:00:19.9]} 63. Kg6 {[%clk 0:00:18.4]}
1-0

[Event "*** Titled Tuesday 3|2 Blitz"]
[Site "Chess.com"]
[Date "2015.09.01"]
[Round "4"]
[White "myaccount88"]
[Black "AlexCn1"]
[Result "1-0"]
[WhiteElo "2152"]
[BlackElo "2167"]
[TimeControl "180+2"]
[EndTime "11:41:16 PDT"]
[Termination "myaccount88 won by resignation"]

1. e4 {[%clk 0:02:59.4]} 1... e5 {[%clk 0:03:00.6]} 2. Nf3 {[%clk 0:02:59.3]}
2... Nc6 {[%clk 0:03:02.1]} 3. d4 {[%clk 0:03:00.7]} 3... exd4 {[%clk 0:03:03]}
4. Nxd4 {[%clk 0:03:02.4]} 4... Nf6 {[%clk 0:03:01.9]} 5. Nc3 {[%clk 0:03:03.3]}
5... d6 {[%clk 0:02:48.8]} 6. Be2 {[%clk 0:02:59.7]} 6... Be7 {[%clk 0:02:49.9]}
7. O-O {[%clk 0:03:00.1]} 7... O-O {[%clk 0:02:51.5]} 8. a4 {[%clk 0:03:00]}
8... Nd7 {[%clk 0:02:48.5]} 9. f4 {[%clk 0:02:58.6]} 9... f6 {[%clk 0:02:49.3]}
10. Ne6 {[%clk 0:02:57.9]} 10... Qe8 {[%clk 0:02:50.5]} 11. Nxc7 {[%clk
0:02:56.3]} 1-0

[Event "*** Titled Tuesday 3|2 Blitz"]
[Site "Chess.com"]
[Date "2015.09.01"]
[Round "4"]
[White "MMSANCHEZ"]
[Black "AlexanderL"]
[Result "1-0"]
[WhiteElo "2304"]
[BlackElo "2507"]
[TimeControl "180+2"]
[EndTime "11:42:44 PDT"]
[Termination "MMSANCHEZ won by resignation"]

1. d4 {[%clk 0:03:01.9]} 1... e6 {[%clk 0:03:01.9]} 2. c4 {[%clk 0:03:01.9]}
2... b6 {[%clk 0:03:02.6]} 3. Nc3 {[%clk 0:03:02.6]} 3... Bb7 {[%clk 0:03:02.4]}
4. Nf3 {[%clk 0:03:03.2]} 4... Bb4 {[%clk 0:03:01.5]} 5. Bd2 {[%clk 0:03:03.4]}
5... f5 {[%clk 0:03:01.3]} 6. e3 {[%clk 0:03:04.4]} 6... Nf6 {[%clk 0:03:02.1]}
7. Bd3 {[%clk 0:03:05.4]} 7... O-O {[%clk 0:03:03]} 8. O-O {[%clk 0:03:06.4]}
8... Qe7 {[%clk 0:03:00.9]} 9. a3 {[%clk 0:03:07.1]} 9... Bxc3 {[%clk
0:03:02.1]} 10. Bxc3 {[%clk 0:03:08.4]} 10... Ne4 {[%clk 0:03:04]} 11. Qc2
{[%clk 0:03:07.9]} 11... d6 {[%clk 0:03:03.9]} 12. Nd2 {[%clk 0:03:07.8]} 12...
Nxd2 {[%clk 0:03:03.8]} 13. Qxd2 {[%clk 0:03:08]} 13... Nd7 {[%clk 0:03:04]} 14.
Rfe1 {[%clk 0:03:02.7]} 14... c5 {[%clk 0:03:00.4]} 15. f3 {[%clk 0:03:02]}
15... Rae8 {[%clk 0:02:56.8]} 16. e4 {[%clk 0:03:02.3]} 16... cxd4 {[%clk
0:02:51.9]} 17. Bxd4 {[%clk 0:03:03.3]} 17... f4 {[%clk 0:02:48.6]} 18. b4
{[%clk 0:02:59.6]} 18... e5 {[%clk 0:02:48.3]} 19. Bf2 {[%clk 0:02:57.7]} 19...
Rf6 {[%clk 0:02:49.3]} 20. Red1 {[%clk 0:02:47]} 20... g5 {[%clk 0:02:47.4]} 21.
c5 {[%clk 0:02:33.9]} 21... bxc5 {[%clk 0:02:47.6]} 22. Bc4+ {[%clk 0:02:35]}
22... Kg7 {[%clk 0:02:46.9]} 23. bxc5 {[%clk 0:02:35.4]} 23... Nxc5 {[%clk
0:02:48]} 24. Bxc5 {[%clk 0:02:32.5]} 24... d5 {[%clk 0:02:49.2]} 25. Bxe7
{[%clk 0:02:31.7]} 1-0